fUST/lending_fUST_20240521
["ID","MTS","AMOUNT","RATE_DAILY","PERIOD"]
[327559432,1716229751562,-500.0,0.00019997,2]
[327559433,1716229751583,-405.32227086,0.00019997,2]
[327559434,1716229751606,-500.0,0.00019997,2]
[327559435,1716229751629,-500.0,0.00019997,2]
[327559436,1716229751649,-500.0,0.00019997,2]
[327559437,1716229751668,-500.0,0.00019997,2]
[327559438,1716229751689,-500.0,0.00019997,2]
[327559439,1716229751711,-500.0,0.00019997,2]
[327559440,1716229751733,-311.15120736,0.00019997,2]
[327559441,1716229751754,-500.0,0.00019997,2]
[327559442,1716229751774,-500.0,0.00019997,2]
[327559443,1716229751795,-500.0,0.00019997,2]
[327559444,1716229751815,-500.0,0.00019997,2]
[327559445,1716229751834,-500.0,0.00019997,2]
[327559446,1716229751854,-500.0,0.00019997,2]
[327559447,1716229751874,-500.0,0.00019997,2]
[327559448,1716229751894,-500.0,0.00019997,2]
[327559449,1716229751913,-500.0,0.00019997,2]
[327559450,1716229751937,-500.0,0.00019997,2]
[327559451,1716229751957,-500.0,0.00019997,2]
[327559452,1716229751976,-500.0,0.00019997,2]
[327559453,1716229751995,-500.0,0.00019997,2]
[327559454,1716229752016,-500.0,0.00019997,2]
[327559455,1716229752035,-500.0,0.00019997,2]
[327559456,1716229752054,-500.0,0.00019997,2]
[327559457,1716229752074,-500.0,0.00019997,2]
[327559458,1716229752093,-500.0,0.00019997,2]
[327559459,1716229752113,-500.0,0.00019997,2]
[327559460,1716229752132,-500.0,0.00019997,2]
[327559461,1716229752154,-500.0,0.00019997,2]
[327559462,1716229752175,-500.0,0.00019997,2]
[327559463,1716229752195,-500.0,0.00019997,2]
[327559464,1716229752216,-500.0,0.00019997,2]
[327559465,1716229752236,-500.0,0.00019997,2]
[327559466,1716229752256,-500.0,0.00019997,2]
[327559467,1716229752276,-548.98387862,0.00019997,2]
[327559468,1716229752296,-500.0,0.00019997,2]
[327559469,1716229752318,-500.0,0.00019997,2]
[327559470,1716229752338,-500.0,0.00019997,2]
[327559471,1716229752359,-500.0,0.00019997,2]
[327559472,1716229752381,-500.0,0.00019997,2]
[327559473,1716229752403,-500.0,0.00019997,2]
[327559474,1716229752423,-500.0,0.00019997,2]
[327559475,1716229752443,-500.0,0.00019997,2]
[327559476,1716229752466,-500.0,0.00019997,2]
[327559477,1716229752488,-49.9901739,0.00019997,2]
[327559480,1716229774287,-450.0098261,0.00019997,2]
[327559481,1716229774308,-500.0,0.00019997,2]
[327559482,1716229774329,-500.0,0.00019997,2]
[327559483,1716229774349,-500.0,0.00019997,2]
[327559484,1716229774371,-500.0,0.00019997,2]
[327559485,1716229774393,-500.0,0.00019997,2]
[327559486,1716229774413,-500.0,0.00019997,2]
[327559487,1716229774434,-500.0,0.00019997,2]
[327559488,1716229774454,-500.0,0.00019997,2]
[327559489,1716229774476,-500.0,0.00019997,2]
[327559490,1716229774496,-403.66148902,0.00019997,2]
[327559491,1716229774516,-500.0,0.00019997,2]
[327559492,1716229774536,-500.0,0.00019997,2]
[327559493,1716229774558,-500.0,0.00019997,2]
[327559494,1716229774577,-500.0,0.00019997,2]
[327559495,1716229774596,-500.0,0.00019997,2]
[327559496,1716229774724,-500.0,0.00019997,2]
[327559497,1716229774744,-500.0,0.00019997,2]
[327559498,1716229774763,-500.0,0.00019997,2]
[327559499,1716229774782,-500.0,0.00019997,2]
[327559500,1716229774803,-500.0,0.00019997,2]
[327559501,1716229774822,-500.0,0.00019997,2]
[327559502,1716229774843,-500.0,0.00019997,2]
[327559503,1716229774863,-500.0,0.00019997,2]
[327559504,1716229774882,-299.99999999,0.00019997,2]
[327559505,1716229774903,-417.59029293,0.00019997,2]
[327559764,1716229839971,-986.45755068,0.00018737,2]
[327559766,1716229839981,-171.351968,0.00019226,2]
[327559768,1716229839991,-160.911643,0.00019409,2]
[327559770,1716229840002,-771.85111591,0.00019998,2]
[327559772,1716229840013,-160.58490999,0.00019998,2]
[327559774,1716229840023,-6417.54134138,0.00019998,2]
[327559776,1716229840036,-156.42793274,0.00019998,2]
[327559778,1716229840046,-151.0,0.00019998,2]
[327559780,1716229840056,-151.0,0.00019998,2]
[327559782,1716229840067,-702.758161,0.00019998,2]
[327559784,1716229840077,-702.758161,0.00019998,2]
[327559786,1716229840087,-151.0,0.00019998,2]
[327559788,1716229840098,-308.815369,0.00019998,2]
[327559790,1716229840109,-308.815369,0.00019998,2]
[327559792,1716229840120,-151.0,0.00019998,2]
[327559794,1716229840130,-627.300356,0.00019998,2]
[327559796,1716229840139,-151.0,0.00019998,2]
[327559798,1716229840150,-627.300356,0.00019998,2]
[327559800,1716229840160,-151.0,0.00019998,2]
[327559802,1716229840170,-577.172122,0.00019998,2]
[327559804,1716229840180,-577.172122,0.00019998,2]
[327559806,1716229840189,-151.0,0.00019998,2]
[327559808,1716229840199,-151.0,0.00019998,2]
[327559810,1716229840209,-183.292603,0.00019998,2]
[327559812,1716229840219,-183.292603,0.00019998,2]
[327559814,1716229840228,-750.272793,0.00019998,2]
[327559816,1716229840238,-750.272793,0.00019998,2]
[327559818,1716229840248,-151.0,0.00019998,2]
[327559820,1716229840257,-151.0,0.00019998,2]
[327559822,1716229840266,-151.0,0.00019998,2]
[327559824,1716229840278,-151.0,0.00019998,2]
[327559826,1716229840288,-1659.985613,0.00019998,2]
[327559828,1716229840297,-151.0,0.00019998,2]
[327559830,1716229840307,-1659.985613,0.00019998,2]
[327559832,1716229840315,-151.0,0.00019998,2]
[327559833,1716229840325,-151.0,0.00019998,2]
[327559835,1716229840334,-475.827332,0.00019998,2]
[327559856,1716229840553,-475.827332,0.00019998,2]
[327559858,1716229840563,-151.0,0.00019998,2]
[327559860,1716229840574,-1319.02059,0.00019998,2]
[327559862,1716229840585,-1319.02059,0.00019998,2]
[327559864,1716229840595,-500.0,0.00019999,2]
[327559866,1716229840605,-500.0,0.00019999,2]
[327559868,1716229840615,-500.0,0.00019999,2]
[327559870,1716229840627,-500.0,0.00019999,2]
[327559872,1716229840637,-221.59668125,0.00019999,2]
[327559874,1716229840647,-500.0,0.00019999,2]
[327559876,1716229840657,-500.0,0.00019999,2]
[327559878,1716229840667,-500.0,0.00019999,2]
[327559880,1716229840678,-500.0,0.00019999,2]
[327559882,1716229840688,-500.0,0.00019999,2]
[327559884,1716229840697,-518.64347542,0.00019999,2]
[327559886,1716229840706,-500.0,0.00019999,2]
[327559904,1716229840859,-500.0,0.00019999,2]
[327559906,1716229840869,-500.0,0.00019999,2]
[327559908,1716229840879,-500.0,0.00019999,2]
[327559911,1716229840888,-500.0,0.00019999,2]
[327559913,1716229840898,-500.0,0.00019999,2]
[327559915,1716229840908,-500.0,0.00019999,2]
[327559917,1716229840917,-492.96427061,0.00019999,2]
[327559919,1716229840927,-500.0,0.00019999,2]
[327559921,1716229840937,-314.69516358,0.00019999,2]
[327559923,1716229840946,-500.0,0.00019999,2]
[327559924,1716229840955,-500.0,0.00019999,2]
[327559926,1716229840966,-500.0,0.00019999,2]
[327559928,1716229840975,-500.0,0.00019999,2]
[327559931,1716229840984,-500.0,0.00019999,2]
[327559933,1716229840994,-453.78524166,0.00019999,2]
[327559935,1716229841004,-500.0,0.00019999,2]
[327559937,1716229841014,-500.0,0.00019999,2]
[327559938,1716229841024,-500.0,0.00019999,2]
[327559941,1716229841036,-500.0,0.00019999,2]
[327559943,1716229841046,-500.0,0.00019999,2]
[327559944,1716229841055,-500.0,0.00019999,2]
[327559946,1716229841064,-500.0,0.00019999,2]
[327559948,1716229841074,-633.34536221,0.00019999,2]
[327559950,1716229841083,-500.0,0.00019999,2]
[327559952,1716229841093,-500.0,0.00019999,2]
[327559954,1716229841103,-500.0,0.00019999,2]
[327559956,1716229841112,-500.0,0.00019999,2]
[327559958,1716229841122,-595.50075058,0.00019999,2]
[327559960,1716229841132,-500.0,0.00019999,2]
[327559962,1716229841142,-500.0,0.00019999,2]
[327559964,1716229841151,-500.0,0.00019999,2]
[327559966,1716229841160,-500.0,0.00019999,2]
[327559968,1716229841170,-500.0,0.00019999,2]
[327559970,1716229841180,-500.0,0.00019999,2]
[327559972,1716229841189,-500.0,0.00019999,2]
[327559974,1716229841199,-500.0,0.00019999,2]
[327559976,1716229841208,-500.0,0.00019999,2]
[327559978,1716229841218,-500.0,0.00019999,2]
[327559980,1716229841227,-94.10026897,0.00019999,2]
[327560228,1716229848871,-420.89973103,0.00019999,2]
[327560229,1716229848881,-500.0,0.00019999,2]
[327560230,1716229848891,-201.75349265,0.0002,2]
[327560231,1716229849008,-36695.33348681,0.0002,2]
[327560232,1716229849018,-1565.51900701,0.0002,2]
[327560233,1716229849029,-7413.7136393,0.0002,2]
[327560234,1716229849040,-9551.74798877,0.0002,2]
[327560235,1716229849049,-400.0,0.0002,2]
[327560236,1716229849058,-154.95336892,0.0002,2]
[327560237,1716229849067,-241.43067132,0.0002,2]
[327560238,1716229849076,-151.0,0.0002,2]
[327560239,1716229849085,-151.0,0.0002,2]
[327560240,1716229849094,-151.0,0.0002,2]
[327560241,1716229849103,-151.0,0.0002,2]
[327560242,1716229849112,-151.0,0.0002,2]
[327560243,1716229849121,-151.0,0.0002,2]
[327560244,1716229849130,-151.0,0.0002,2]
[327560245,1716229849139,-151.0,0.0002,2]
[327560246,1716229849148,-151.0,0.0002,2]
[327560247,1716229849157,-151.0,0.0002,2]
[327560248,1716229849166,-152.057814,0.0002,2]
[327560249,1716229849175,-702.758161,0.0002,2]
[327560250,1716229849184,-702.758161,0.0002,2]
[327560251,1716229849194,-702.758161,0.0002,2]
[327560252,1716229849202,-702.758161,0.0002,2]
[327560253,1716229849211,-151.0,0.0002,2]
[327560254,1716229849221,-151.0,0.0002,2]
[327560255,1716229849230,-151.0,0.0002,2]
[327560256,1716229849239,-151.0,0.0002,2]
[327560257,1716229849248,-151.42618681,0.0002,2]
[327560258,1716229849257,-151.0,0.0002,2]
[327560259,1716229849266,-151.0,0.0002,2]
[327560260,1716229849276,-151.0,0.0002,2]
[327560261,1716229849287,-308.815369,0.0002,2]
[327560262,1716229849296,-308.815369,0.0002,2]
[327560263,1716229849305,-308.815369,0.0002,2]
[327560264,1716229849315,-308.815369,0.0002,2]
[327560265,1716229849324,-151.0,0.0002,2]
[327560266,1716229849334,-151.39404,0.0002,2]
[327560267,1716229849343,-627.300356,0.0002,2]
[327560268,1716229849352,-627.300356,0.0002,2]
[327560269,1716229849361,-151.0,0.0002,2]
[327560270,1716229849371,-151.0,0.0002,2]
[327560271,1716229849379,-627.300356,0.0002,2]
[327560272,1716229849389,-627.300356,0.0002,2]
[327560273,1716229849398,-46.17608893,0.0002,2]
[327560274,1716229849410,-104.82391107,0.0002,2]
[327560275,1716229849419,-151.0,0.0002,2]
[327560276,1716229849428,-577.172122,0.0002,2]
[327560277,1716229849437,-577.172122,0.0002,2]
[327560278,1716229849447,-577.172122,0.0002,2]
[327560279,1716229849455,-577.172122,0.0002,2]
[327560280,1716229849464,-577.172122,0.0002,2]
[327560281,1716229849474,-577.172122,0.0002,2]
[327560282,1716229849483,-151.0,0.0002,2]
[327560283,1716229849492,-151.0,0.0002,2]
[327560284,1716229849501,-151.0,0.0002,2]
[327560285,1716229849510,-151.0,0.0002,2]
[327560286,1716229849520,-151.0,0.0002,2]
[327560287,1716229849529,-183.292603,0.0002,2]
[327560288,1716229849540,-183.292603,0.0002,2]
[327560289,1716229849550,-183.292603,0.0002,2]
[327560290,1716229849559,-183.292603,0.0002,2]
[327560291,1716229849569,-750.272793,0.0002,2]
[327560292,1716229849584,-512.70015193,0.0002,2]
[327560293,1716229899298,371.12891802,9.999e-05,2]
[327560294,1716229996667,334.12418893,9.999e-05,2]
[327560295,1716229997904,160.19614115,9.999e-05,2]
[327560298,1716230752119,-436.00257203,0.00017537,2]
[327560299,1716230830142,-1950.0098261,0.00017372,2]
[327560300,1716230850102,-186.249816,0.00017363,2]
[327560301,1716230850123,-3493.8040438,0.00017372,2]
[327560302,1716230850145,-24463.99742797,0.00017537,2]
[327560303,1716230850167,-1000.0,0.00018311,2]
[327560304,1716230850189,-1000.0,0.00018381,2]
[327560305,1716230850209,-1000.0,0.00018456,2]
[327560306,1716230850229,-231.87453083,0.00018478,2]
[327560307,1716230850250,-1000.0,0.00018501,2]
[327560308,1716230850270,-1000.0,0.0001854,2]
[327560309,1716230850289,-26207.82489209,0.0001864,2]
[327560310,1716230850311,-740.43917119,0.0001874,2]
[327560316,1716230948269,-246.01837949,0.0001874,2]
[327560317,1716230948294,-1000.0,0.00018979,2]
[327560318,1716230948317,-1000.0,0.00019171,2]
[327560319,1716230948338,-160.911644,0.00019178,2]
[327560320,1716230948359,-165.852754,0.00019178,2]
[327560321,1716230948381,-584.90013466,0.00019799,2]
[327560322,1716230948404,-300.0,0.00019801,2]
[327560323,1716230948580,-296.41015155,0.00019804,2]
[327560324,1716230948604,-155.06520661,0.00019899,2]
[327560325,1716230948626,-2084.08267652,0.00019899,2]
[327560326,1716230948648,-155.06520659,0.00019899,2]
[327560327,1716230948670,-155.06520659,0.000199,2]
[327560328,1716230948691,-155.06520659,0.000199,2]
[327560329,1716230948715,-300.0,0.00019923,2]
[327560330,1716230948737,-300.0,0.00019945,2]
[327560331,1716230948757,-300.0,0.00019965,2]
[327560332,1716230948778,-6825.50081253,0.00019997,2]
[327560333,1716230948805,-1350.43959976,0.00019997,2]
[327560334,1716230948826,-330.96158487,0.00019997,2]
[327560335,1716230948849,-6291.21164593,0.00019997,2]
[327560336,1716230948871,-494.55807229,0.00019998,2]
[327560337,1716230948892,-516.03123056,0.00019998,2]
[327560338,1716230948923,-652.24676081,0.00019998,2]
[327560339,1716230948948,-264.54391882,0.00019998,2]
[327560340,1716230948970,-301.90727837,0.00019998,2]
[327560341,1716230948991,-2634.32657847,0.00019998,2]
[327560342,1716230949015,-494.50459711,0.00019999,2]
[327560343,1716230949038,-335.0,0.00019999,2]
[327560344,1716230949060,-13468.51938691,0.00019999,2]
[327560345,1716230957143,-4130.25369815,0.00019999,2]
[327560349,1716230985653,523.55614149,9.999e-05,2]
[327560455,1716231038326,-999.73764395,0.00018,2]
[327560456,1716231038336,-9827.67116754,0.00019227,2]
[327560474,1716231040723,-3032.08508858,0.00019227,2]
[327560475,1716231040735,-4324.7520704,0.00019227,2]
[327560476,1716231040747,-5066.96268662,0.00019227,2]
[327560477,1716231040759,-2648.52898686,0.00019227,2]
[327560478,1716231040768,-236.5182214,0.00019998,2]
[327560479,1716231040778,-230.80285918,0.00019998,2]
[327560480,1716231040788,-835.50091713,0.00019998,2]
[327560481,1716231040799,-395.32769299,0.00019998,2]
[327560482,1716231040808,-154.82968734,0.00019998,2]
[327560483,1716231040818,-302.05217058,0.00019998,2]
[327560484,1716231041793,487.76962202,9.999e-05,2]
[327560512,1716231043899,-221.03939413,0.00019998,2]
[327560513,1716231043908,-1885.45852368,0.00019998,2]
[327560515,1716231043918,-1043.25678867,0.00019998,2]
[327560517,1716231043928,-154.82968734,0.00019998,2]
[327560519,1716231043937,-410.45768134,0.00019998,2]
[327560520,1716231043946,-158.51655577,0.00019998,2]
[327560521,1716231043955,-285.03925166,0.00019998,2]
[327560522,1716231043964,-1338.92794901,0.00019998,2]
[327560523,1716231043974,-492.86440031,0.00019998,2]
[327560524,1716231043987,-1403.26792763,0.00019998,2]
[327560525,1716231043997,-5184.15450064,0.00019999,2]
[327560526,1716231044006,-597.88928119,0.00019999,2]
[327560527,1716231044015,-436.56148946,0.00019999,2]
[327560528,1716231044026,-500.0,0.00019999,2]
[327560529,1716231044035,-500.0,0.00019999,2]
[327560530,1716231044044,-544.40854908,0.00019999,2]
[327560531,1716231044055,-500.0,0.00019999,2]
[327560532,1716231044065,-306.84005776,0.00019999,2]
[327560533,1716231044769,-193.15994224,0.00019999,2]
[327560534,1716231044780,-262.6511324,0.00019999,2]
[327560535,1716231044792,-237.3488676,0.00019999,2]
[327560536,1716231044801,-500.0,0.00019999,2]
[327560537,1716231044810,-309.25572054,0.00019999,2]
[327560538,1716231044821,-261.13557249,0.00019999,2]
[327560539,1716231044830,-490.00360866,0.00019999,2]
[327560540,1716231044839,-500.0,0.00019999,2]
[327560541,1716231044848,-500.0,0.00019999,2]
[327560542,1716231044857,-500.0,0.00019999,2]
[327560543,1716231044867,-500.0,0.00019999,2]
[327560544,1716231044876,-256.23826336,0.00019999,2]
[327560545,1716231044886,-500.0,0.00019999,2]
[327560546,1716231044895,-500.0,0.00019999,2]
[327560547,1716231044904,-165.00687827,0.00019999,2]
[327560548,1716231044916,-200.0,0.00019999,2]
[327560549,1716231044925,-1565.51900701,0.0002,2]
[327560550,1716231044934,-26256.32907707,0.0002,2]
[327560601,1716231046496,-1668.43457632,0.0002,2]
[327560800,1716231071479,1866.41167338,9.999e-05,2]
[327560801,1716231074219,154.81422293,9.999e-05,2]
[327560802,1716231076862,364.39759139,9.999e-05,2]
[327560803,1716231078689,281.12635245,9.999e-05,2]
[327560804,1716231093490,150.0,0.00023,30]
[327560805,1716231103065,261.15058514,9.999e-05,2]
[327560806,1716231219109,817.07768725,7.131e-05,2]
[327560814,1716231622385,1496.69412767,9.999e-05,2]
[327560815,1716231812189,472.35,0.00010959,2]
[327560817,1716231883785,1792.15806999,9.999e-05,2]
[327560818,1716231883817,8718.43657912,9.999e-05,2]
[327560820,1716232031180,-374.268349,0.00013818,2]
[327560821,1716232031203,-11056.52493755,0.00014785,2]
[327560822,1716232031223,-7895.65151907,0.00014786,2]
[327560823,1716232031247,-23647.44157328,0.00014787,2]
[327560825,1716232149120,-2241.0553962,0.00013691,2]
[327560826,1716232149145,-1581.74785164,0.00013789,2]
[327560827,1716232149168,-3151.84230947,0.0001379,2]
[327560828,1716232150418,-4743.8092096,0.0001379,2]
[327560829,1716232150439,-3389.41212236,0.0001379,2]
[327560833,1716232157120,-309.40952011,0.0001379,2]
[327560837,1716232210348,154.94813461,9.999e-05,2]
[327560838,1716232210388,2524.33197828,9.999e-05,2]
[327560852,1716232232582,-274.56864224,0.00013788,2]
[327560853,1716232232591,-69.74941747,0.00013789,2]
[327560854,1716232232603,-7820.85247121,0.00013789,2]
[327560855,1716232232613,-55713.17257654,0.0001379,2]
[327560856,1716232232622,-10944.82986883,0.00013791,2]
[327560947,1716232238817,-13955.17013117,0.00013791,2]
[327560949,1716232238827,-3000.0,0.00013791,2]
[327560951,1716232238836,-935.71461673,0.00014689,2]
[327560953,1716232238846,-3427.04336797,0.00014785,2]
[327560955,1716232238855,-9561.24585473,0.00014789,2]
[327560957,1716232238865,-155.71984867,0.00014793,2]
[327560958,1716232238874,-155.71984867,0.00014793,2]
[327560960,1716232238884,-155.71984867,0.00014793,2]
[327560962,1716232238894,-155.71984867,0.00014793,2]
[327560965,1716232238904,-155.71984867,0.00014794,2]
[327560966,1716232238913,-155.71984867,0.00014794,2]
[327560969,1716232238923,-155.71984867,0.00014794,2]
[327560970,1716232238932,-155.71984867,0.00014794,2]
[327560972,1716232238941,-344.31805971,0.00014887,2]
[327560974,1716232238950,-1599.24726643,0.00014888,2]
[327560976,1716232238960,-407.1341135,0.00014997,2]
[327560978,1716232238970,-942.77170322,0.00015,2]
[327560981,1716232238979,-935.71461673,0.00015992,2]
[327560983,1716232238989,-154.81422293,0.000165,2]
[327560984,1716232238998,-2597.95193588,0.00016657,2]
[327560986,1716232239007,-935.71461673,0.00017295,2]
[327560988,1716232239017,-935.71461673,0.00018597,2]
[327560990,1716232239026,-157.82356406,0.00018863,2]
[327560992,1716232239035,-2634.87580338,0.00018965,2]
[327560994,1716232239045,-920.93404353,0.00018996,2]
[327560996,1716232239054,-2241.05539613,0.00019121,2]
[327560997,1716232239063,-233.3179496,0.00019178,2]
[327561000,1716232239073,-500.0,0.00019178,2]
[327561001,1716232239082,-500.0,0.00019178,2]
[327561003,1716232239091,-500.0,0.00019178,2]
[327561005,1716232239100,-307.0010826,0.00019178,2]
[327561007,1716232239110,-500.0,0.00019178,2]
[327561009,1716232239121,-500.0,0.00019178,2]
[327561010,1716232239130,-500.0,0.00019178,2]
[327561011,1716232239139,-500.0,0.00019178,2]
[327561012,1716232239148,-500.0,0.00019178,2]
[327561013,1716232239157,-500.0,0.00019178,2]
[327561014,1716232239166,-500.0,0.00019178,2]
[327561015,1716232239175,-500.0,0.00019178,2]
[327561016,1716232239184,-500.0,0.00019178,2]
[327561017,1716232239193,-500.0,0.00019178,2]
[327561018,1716232239202,-500.0,0.00019178,2]
[327561019,1716232239211,-500.0,0.00019178,2]
[327561020,1716232239220,-500.0,0.00019178,2]
[327561021,1716232239229,-500.0,0.00019178,2]
[327561022,1716232239238,-401.14838265,0.00019178,7]
[327561023,1716232239247,-160.911643,0.00019178,2]
[327561024,1716232239256,-194.42088593,0.00019796,2]
[327561025,1716232239266,-4223.25780806,0.00019798,2]
[327561026,1716232239275,-510.52756139,0.00019799,2]
[327561027,1716232239284,-417.22450303,0.00019891,2]
[327561028,1716232239293,-935.71461673,0.000199,2]
[327561029,1716232239302,-837.52195846,0.00019995,2]
[327561030,1716232239333,-1000.0,0.00019995,2]
[327561031,1716232239344,-270.01946974,0.00019995,2]
[327561033,1716232239354,-154.82968734,0.00019995,2]
[327561034,1716232239364,-410.06342945,0.00019996,2]
[327561035,1716232239378,-316.15927372,0.00019996,2]
[327561037,1716232239388,-395.32769299,0.00019996,2]
[327561039,1716232239397,-758.81730878,0.00019996,2]
[327561041,1716232239407,-283.58690319,0.00019996,2]
[327561043,1716232239417,-452.52831116,0.00019996,2]
[327561045,1716232239428,-156.56985226,0.00019996,2]
[327561047,1716232239437,-174.87695453,0.00019996,2]
[327561049,1716232239446,-155.36244923,0.00019997,2]
[327561051,1716232239459,-321.94855256,0.00019997,2]
[327561053,1716232239468,-230.63817282,0.00019997,2]
[327561055,1716232239478,-307.42328476,0.00019997,2]
[327561057,1716232239487,-9398.82663272,0.00019997,2]
[327561059,1716232239496,-55509.96207683,0.00019998,3]
[327561061,1716232239505,-702.56585547,0.00019998,2]
[327561063,1716232239515,-1588.78558149,0.00019998,2]
[327561065,1716232239525,-156.45299204,0.00019998,2]
[327561067,1716232239534,-224.99540342,0.00019998,2]
[327561069,1716232239543,-274.31417067,0.00019998,2]
[327561071,1716232239552,-223.96601824,0.00019998,2]
[327561073,1716232239561,-231.40855204,0.00019998,2]
[327561075,1716232239571,-1450.46017766,0.00019998,2]
[327561077,1716232239580,-835.50091713,0.00019998,2]
[327561079,1716232239589,-658.15339953,0.00019998,2]
[327561081,1716232239599,-207.75497668,0.00019998,2]
[327561082,1716232239608,-1581.42130168,0.00019998,2]
[327561085,1716232239618,-157.07571086,0.00019998,2]
[327561086,1716232239627,-155.07233916,0.00019998,2]
[327561088,1716232239637,-818.31964662,0.00019998,2]
[327561090,1716232239647,-200.0,0.00019998,2]
[327561092,1716232239656,-771.85111591,0.00019998,2]
[327561094,1716232239666,-720.03599719,0.00019998,2]
[327561096,1716232239676,-190.66691876,0.00019998,2]
[327561098,1716232239685,-690.19911136,0.00019998,2]
[327561100,1716232239695,-225.81447293,0.00019998,2]
[327561102,1716232239705,-238.60242952,0.00019999,2]
[327561104,1716232239714,-154.84515485,0.00019999,2]
[327561106,1716232239724,-10448.86120355,0.00019999,2]
[327561108,1716232239734,-9046.07505568,0.0002,3]
[327561228,1716232240893,-12048.13857542,0.0001379,2]
[327561230,1716232240903,-9642.92136534,0.0002,3]
[327561366,1716232243627,-39055.9577027,0.0002,3]
[327561368,1716232243636,-7703.60945795,0.0002,2]
[327562131,1716232257001,1407.23420979,9.999e-05,2]
[327562136,1716232916306,155.70807239,9.999e-05,2]
[327562137,1716232927285,154.84515485,9.999e-05,2]
[327562138,1716232932630,154.84515485,9.999e-05,2]
[327562139,1716232962525,191.46511093,9.999e-05,2]
[327562140,1716232966796,154.84515485,9.999e-05,2]
[327562141,1716232969261,702.72526149,9.999e-05,2]
[327562142,1716232970874,684.75161522,9.999e-05,2]
[327562143,1716232971296,154.84515485,9.999e-05,2]
[327562144,1716232977755,395.37013077,9.999e-05,2]
[327562145,1716232977839,154.84515485,9.999e-05,2]
[327562146,1716232979700,207.44455215,9.999e-05,2]
[327562147,1716232980664,156.48281181,9.999e-05,2]
[327562148,1716232982491,238.80965777,9.999e-05,2]
[327562149,1716232985545,522.72294863,9.999e-05,2]
[327562150,1716232985593,1095.21612986,9.999e-05,2]
[327562151,1716232988281,2634.87580338,9.999e-05,2]
[327562152,1716232991248,154.87609912,9.999e-05,2]
[327562153,1716232993641,154.87609912,9.999e-05,2]
[327562154,1716232995186,154.87609912,9.999e-05,2]
[327562155,1716233005114,154.87609912,9.999e-05,2]
[327562156,1716233012005,1496.69412767,9.999e-05,2]
[327562159,1716233025927,331.02680639,9.999e-05,2]
[327562161,1716233028366,2142.97403362,9.999e-05,2]
[327562162,1716233028404,4682.52677891,9.999e-05,2]
[327562164,1716233031799,1717.41174597,9.999e-05,2]
[327562165,1716233031861,1350.72680674,9.999e-05,2]
[327562167,1716233041070,154.87609912,9.999e-05,2]
[327562168,1716233059958,1043.44234529,9.999e-05,2]
[327562169,1716233064269,267.5305,9.999e-05,2]
[327562182,1716233249168,154.90705577,9.999e-05,2]
[327562183,1716233283876,154.90705577,9.999e-05,2]
[327562226,1716233433293,-10510.59464911,0.00011739,2]
[327562228,1716233433304,-2634.87580338,0.0001174,2]
[327562230,1716233433314,-51246.1447775,0.0001174,2]
[327562232,1716233433326,-8165.84944151,0.0001174,2]
[327562234,1716233433336,-9400.5542733,0.00011741,2]
[327562236,1716233433345,-2466.41391558,0.00011741,2]
[327562238,1716233433355,-2679.28011289,0.00011742,2]
[327562240,1716233433364,-154.8915759,0.00011742,2]
[327562242,1716233433375,-9561.24585473,0.00011743,2]
[327562244,1716233433386,-7895.65151907,0.00011743,2]
[327562246,1716233433396,-11056.52493755,0.00011743,2]
[327562248,1716233433407,-26212.95298073,0.00011744,2]
[327562250,1716233433417,-2597.95193588,0.00011744,2]
[327562252,1716233433427,-2114.91734672,0.00011744,2]
[327562254,1716233433436,-154.8915759,0.00011746,2]